[Event "Titled Tuesday Blitz April 4 Early 2023"]
[White "Drori, Saar"]
[Black "Iliaguev, Nisim"]
[WhiteFideId "2812444"]
[BlackFideId "2817276"]
[WhiteElo "2322"]
[BlackElo "2241"]
[Result "1/2-1/2"]
[Round "06"]
[TimeControl "180+2"]
[Date "2023.04.04"]
[WhiteClock "0:00:06"]
[BlackClock "0:00:20"]

1. e4 {[%clk 0:03:00]}  c6 {[%clk 0:02:56]} 2. Nc3 {[%clk 0:03:00]}  d5 {[%clk 0:02:57]} 3. Nf3 {[%clk 0:03:01]}  dxe4 {[%clk 0:02:57]} 4. Nxe4 {[%clk 0:03:02]}  Nf6 {[%clk 0:02:58]} 5. Qe2 {[%clk 0:03:02]}  Nxe4 {[%clk 0:02:57]} 6. Qxe4 {[%clk 0:03:03]}  Qa5 {[%clk 0:02:55]} 7. Bc4 {[%clk 0:03:02]}  Qf5 {[%clk 0:02:56]} 8. d3 {[%clk 0:02:50]}  Qxe4+ {[%clk 0:02:52]} 9. dxe4 {[%clk 0:02:51]}  Nd7 {[%clk 0:02:53]} 10. Bg5 {[%clk 0:02:41]}  e6 {[%clk 0:02:53]} 11. O-O-O {[%clk 0:02:40]}  Be7 {[%clk 0:02:48]} 12. Bxe7 {[%clk 0:02:33]}  Kxe7 {[%clk 0:02:49]} 13. e5 {[%clk 0:02:34]}  b6 {[%clk 0:02:41]} 14. Rd6 {[%clk 0:02:31]}  Bb7 {[%clk 0:02:36]} 15. Rhd1 {[%clk 0:02:29]}  Rhd8 {[%clk 0:02:36]} 16. Bd3 {[%clk 0:02:23]}  c5 {[%clk 0:02:31]} 17. Bb5 {[%clk 0:02:16]}  Nf8 {[%clk 0:02:21]} 18. Bc6 {[%clk 0:01:45]}  Bxc6 {[%clk 0:02:12]} 19. Rxc6 {[%clk 0:01:46]}  Rxd1+ {[%clk 0:02:09]} 20. Kxd1 {[%clk 0:01:47]}  Rd8+ {[%clk 0:02:07]} 21. Ke2 {[%clk 0:01:46]}  h6 {[%clk 0:02:02]} 22. Rc7+ {[%clk 0:01:34]}  Rd7 {[%clk 0:02:02]} 23. Rc8 {[%clk 0:01:35]}  Ng6 {[%clk 0:02:02]} 24. g3 {[%clk 0:01:31]}  Nf8 {[%clk 0:01:42]} 25. Nd2 {[%clk 0:01:25]}  Rd8 {[%clk 0:01:36]} 26. Rxd8 {[%clk 0:01:23]}  Kxd8 {[%clk 0:01:37]} 27. Ne4 {[%clk 0:01:22]}  Ke7 {[%clk 0:01:34]} 28. Nd6 {[%clk 0:01:20]}  Nd7 {[%clk 0:01:29]} 29. f4 {[%clk 0:01:12]}  a6 {[%clk 0:01:29]} 30. Ke3 {[%clk 0:01:08]}  f5 {[%clk 0:01:28]} 31. h3 {[%clk 0:00:59]}  g5 {[%clk 0:01:27]} 32. g4 {[%clk 0:00:59]}  fxg4 {[%clk 0:01:24]} 33. hxg4 {[%clk 0:00:59]}  b5 {[%clk 0:01:17]} 34. Ke4 {[%clk 0:00:53]}  gxf4 {[%clk 0:01:13]} 35. Kxf4 {[%clk 0:00:53]}  Nb6 {[%clk 0:01:13]} 36. Nb7 {[%clk 0:00:39]}  c4 {[%clk 0:01:05]} 37. Nc5 {[%clk 0:00:39]}  a5 {[%clk 0:01:04]} 38. Nb7 {[%clk 0:00:36]}  a4 {[%clk 0:01:03]} 39. c3 {[%clk 0:00:31]}  Nd5+ {[%clk 0:00:58]} 40. Ke4 {[%clk 0:00:31]}  b4 {[%clk 0:00:56]} 41. cxb4 {[%clk 0:00:30]}  Nxb4 {[%clk 0:00:56]} 42. Kd4 {[%clk 0:00:28]}  Nc6+ {[%clk 0:00:49]} 43. Ke4 {[%clk 0:00:26]}  Nb4 {[%clk 0:00:49]} 44. a3 {[%clk 0:00:11]}  Nd3 {[%clk 0:00:48]} 45. Kd4 {[%clk 0:00:12]}  Nxb2 {[%clk 0:00:48]} 46. Nd6 {[%clk 0:00:10]}  Nd3 {[%clk 0:00:40]} 47. Nxc4 {[%clk 0:00:09]}  Nf2 {[%clk 0:00:41]} 48. Ne3 {[%clk 0:00:09]}  Kd7 {[%clk 0:00:38]} 49. Kc5 {[%clk 0:00:09]}  Nd3+ {[%clk 0:00:38]} 50. Kb5 {[%clk 0:00:08]}  Nxe5 {[%clk 0:00:38]} 51. Kxa4 {[%clk 0:00:09]}  Kc6 {[%clk 0:00:36]} 52. Kb4 {[%clk 0:00:09]}  Nd7 {[%clk 0:00:29]} 53. Kc4 {[%clk 0:00:09]}  Kb6 {[%clk 0:00:26]} 54. Kd4 {[%clk 0:00:07]}  Ka5 {[%clk 0:00:26]} 55. Nc4+ {[%clk 0:00:05]}  Ka4 {[%clk 0:00:26]} 56. Ke4 {[%clk 0:00:06]}  Kb3 {[%clk 0:00:24]} 57. Ne5 {[%clk 0:00:05]}  Nf6+ {[%clk 0:00:24]} 58. Kf4 {[%clk 0:00:05]}  Kxa3 {[%clk 0:00:23]} 59. Nf7 {[%clk 0:00:06]}  Nxg4 {[%clk 0:00:17]} 60. Kxg4 {[%clk 0:00:06]}  Kb4 {[%clk 0:00:18]} 61. Nxh6 {[%clk 0:00:05]}  Kc4 {[%clk 0:00:19]} 62. Kf3 {[%clk 0:00:05]}  Kd3 {[%clk 0:00:19]} 63. Nf7 {[%clk 0:00:06]}  e5 {[%clk 0:00:20]} 64. Nxe5+ {[%clk 0:00:06]} 1/2-1/2


[Site "https://www.chess.com"]

[Event "Titled Tuesday Blitz April 4 Early 2023"]
[White "Krysa, Leandro"]
[Black "Sousa, Andre Ventura"]
[WhiteFideId "116807"]
[BlackFideId "1917617"]
[WhiteElo "2489"]
[BlackElo "2348"]
[Result "0-1"]
[Round "06"]
[TimeControl "180+2"]
[Date "2023.04.04"]
[WhiteClock "0:00:02"]
[BlackClock "0:00:52"]

1. e4 {[%clk 0:02:57]}  e5 {[%clk 0:03:00]} 2. Nf3 {[%clk 0:02:55]}  Nc6 {[%clk 0:03:00]} 3. d4 {[%clk 0:02:56]}  exd4 {[%clk 0:03:00]} 4. Nxd4 {[%clk 0:02:57]}  Nf6 {[%clk 0:02:59]} 5. Nxc6 {[%clk 0:02:57]}  bxc6 {[%clk 0:03:00]} 6. e5 {[%clk 0:02:57]}  Qe7 {[%clk 0:03:01]} 7. Qe2 {[%clk 0:02:57]}  Nd5 {[%clk 0:03:01]} 8. Nd2 {[%clk 0:02:58]}  g6 {[%clk 0:02:56]} 9. c4 {[%clk 0:02:53]}  Ba6 {[%clk 0:02:56]} 10. Nf3 {[%clk 0:02:51]}  Bg7 {[%clk 0:02:53]} 11. Bg5 {[%clk 0:02:43]}  Qb4+ {[%clk 0:02:53]} 12. Qd2 {[%clk 0:02:43]}  Qxd2+ {[%clk 0:02:52]} 13. Kxd2 {[%clk 0:02:34]}  Ne7 {[%clk 0:02:53]} 14. Kc2 {[%clk 0:02:22]}  c5 {[%clk 0:02:50]} 15. Re1 {[%clk 0:01:55]}  Nc6 {[%clk 0:02:49]} 16. b3 {[%clk 0:01:41]}  O-O {[%clk 0:02:45]} 17. a3 {[%clk 0:01:28]}  Rfe8 {[%clk 0:02:36]} 18. Bf4 {[%clk 0:01:25]}  f6 {[%clk 0:02:19]} 19. e6 {[%clk 0:01:08]}  Rxe6 {[%clk 0:02:13]} 20. Rxe6 {[%clk 0:01:07]}  dxe6 {[%clk 0:02:14]} 21. Be3 {[%clk 0:01:02]}  f5 {[%clk 0:01:59]} 22. Bxc5 {[%clk 0:01:00]}  e5 {[%clk 0:01:54]} 23. Be2 {[%clk 0:00:59]}  e4 {[%clk 0:01:54]} 24. Ng5 {[%clk 0:00:56]}  Nd4+ {[%clk 0:01:45]} 25. Bxd4 {[%clk 0:00:56]}  Bxd4 {[%clk 0:01:45]} 26. Ne6 {[%clk 0:00:56]}  Bxf2 {[%clk 0:01:45]} 27. Nxc7 {[%clk 0:00:55]}  Bb7 {[%clk 0:01:37]} 28. Nxa8 {[%clk 0:00:54]}  Bxa8 {[%clk 0:01:38]} 29. Rd1 {[%clk 0:00:54]}  Kf7 {[%clk 0:01:33]} 30. Rd7+ {[%clk 0:00:51]}  Ke6 {[%clk 0:01:33]} 31. Rxh7 {[%clk 0:00:49]}  f4 {[%clk 0:01:32]} 32. b4 {[%clk 0:00:36]}  e3 {[%clk 0:01:20]} 33. Bf1 {[%clk 0:00:16]}  Bxg2 {[%clk 0:01:09]} 34. Bxg2 {[%clk 0:00:12]}  e2 {[%clk 0:01:09]} 35. Rh8 {[%clk 0:00:12]}  Ke7 {[%clk 0:00:57]} 36. Bc6 {[%clk 0:00:11]}  Be3 {[%clk 0:00:54]} 37. Re8+ {[%clk 0:00:04]}  Kd6 {[%clk 0:00:54]} 38. Bf3 {[%clk 0:00:01]}  e1=Q {[%clk 0:00:53]} 39. c5+ {[%clk 0:00:02]}  Kd7 {[%clk 0:00:52]} 0-1


[Site "https://www.chess.com"]

[Event "Titled Tuesday Blitz April 4 Early 2023"]
[White "Levitskiy, Andrey"]
[Black "Omelja, Artem"]
[WhiteFideId "14132885"]
[BlackFideId "14119846"]
[WhiteElo "2341"]
[BlackElo "2404"]
[Result "1-0"]
[Round "06"]
[TimeControl "180+2"]
[Date "2023.04.04"]
[WhiteClock "0:00:31"]
[BlackClock "0:00:55"]

1. e4 {[%clk 0:02:58]}  c5 {[%clk 0:02:59]} 2. Nf3 {[%clk 0:02:55]}  Nc6 {[%clk 0:03:00]} 3. d4 {[%clk 0:02:54]}  cxd4 {[%clk 0:03:00]} 4. Nxd4 {[%clk 0:02:55]}  Nf6 {[%clk 0:03:00]} 5. Nc3 {[%clk 0:02:56]}  e5 {[%clk 0:03:00]} 6. Ndb5 {[%clk 0:02:56]}  d6 {[%clk 0:03:01]} 7. Bg5 {[%clk 0:02:56]}  a6 {[%clk 0:03:01]} 8. Na3 {[%clk 0:02:57]}  b5 {[%clk 0:03:02]} 9. Nd5 {[%clk 0:02:58]}  Be7 {[%clk 0:03:02]} 10. Bxf6 {[%clk 0:02:58]}  Bxf6 {[%clk 0:03:02]} 11. c4 {[%clk 0:02:59]}  b4 {[%clk 0:03:02]} 12. Nc2 {[%clk 0:03:00]}  O-O {[%clk 0:03:02]} 13. g3 {[%clk 0:02:59]}  a5 {[%clk 0:03:01]} 14. Bg2 {[%clk 0:03:00]}  Rb8 {[%clk 0:02:59]} 15. O-O {[%clk 0:02:58]}  a4 {[%clk 0:02:59]} 16. b3 {[%clk 0:02:58]}  Na5 {[%clk 0:02:57]} 17. Ncxb4 {[%clk 0:02:51]}  Bg5 {[%clk 0:02:55]} 18. Rb1 {[%clk 0:02:38]}  Be6 {[%clk 0:02:48]} 19. Qd3 {[%clk 0:02:31]}  Qd7 {[%clk 0:02:43]} 20. Rfd1 {[%clk 0:02:24]}  Rb7 {[%clk 0:02:36]} 21. f4 {[%clk 0:02:10]}  exf4 {[%clk 0:02:29]} 22. gxf4 {[%clk 0:02:11]}  Bh6 {[%clk 0:02:25]} 23. f5 {[%clk 0:02:03]}  Bxd5 {[%clk 0:02:25]} 24. Nxd5 {[%clk 0:02:04]}  axb3 {[%clk 0:02:22]} 25. axb3 {[%clk 0:02:05]}  Nc6 {[%clk 0:02:21]} 26. Qg3 {[%clk 0:01:56]}  Kh8 {[%clk 0:02:20]} 27. f6 {[%clk 0:01:27]}  g6 {[%clk 0:02:10]} 28. Qh4 {[%clk 0:01:24]}  Ne5 {[%clk 0:01:51]} 29. Qxh6 {[%clk 0:01:20]}  Rg8 {[%clk 0:01:50]} 30. Ne7 {[%clk 0:01:15]}  Ng4 {[%clk 0:01:21]} 31. Qf4 {[%clk 0:01:15]}  Ra8 {[%clk 0:01:15]} 32. Bh3 {[%clk 0:01:11]}  h5 {[%clk 0:01:09]} 33. Bxg4 {[%clk 0:01:07]}  Qxg4+ {[%clk 0:01:09]} 34. Qxg4 {[%clk 0:01:07]}  hxg4 {[%clk 0:01:10]} 35. Rxd6 {[%clk 0:01:01]}  Ra2 {[%clk 0:01:09]} 36. c5 {[%clk 0:00:49]}  Rc2 {[%clk 0:01:05]} 37. c6 {[%clk 0:00:45]}  Ra7 {[%clk 0:01:05]} 38. Nxg6+ {[%clk 0:00:30]}  fxg6 {[%clk 0:01:05]} 39. Rd8+ {[%clk 0:00:30]}  Kh7 {[%clk 0:01:03]} 40. Rd7+ {[%clk 0:00:31]}  Rxd7 {[%clk 0:01:03]} 41. cxd7 {[%clk 0:00:32]}  Rd2 {[%clk 0:01:04]} 42. e5 {[%clk 0:00:32]}  Rxd7 {[%clk 0:01:03]} 43. e6 {[%clk 0:00:33]}  Rd2 {[%clk 0:00:55]} 44. Re1 {[%clk 0:00:31]} 1-0


[Site "https://www.chess.com"]

[Event "Titled Tuesday Blitz April 4 Early 2023"]
[White "Tomaszewski, Kacper"]
[Black "Jessel, Stephen"]
[WhiteFideId "1127373"]
[BlackFideId "628859"]
[WhiteElo "2211"]
[BlackElo "2268"]
[Result "0-1"]
[Round "06"]
[TimeControl "180+2"]
[Date "2023.04.04"]
[WhiteClock "0:00:22"]
[BlackClock "0:01:01"]

1. e4 {[%clk 0:03:00]}  a6 {[%clk 0:02:57]} 2. g3 {[%clk 0:02:59]}  e6 {[%clk 0:02:55]} 3. Bg2 {[%clk 0:02:59]}  d5 {[%clk 0:02:55]} 4. d3 {[%clk 0:02:51]}  dxe4 {[%clk 0:02:54]} 5. dxe4 {[%clk 0:02:48]}  Qxd1+ {[%clk 0:02:53]} 6. Kxd1 {[%clk 0:02:49]}  Bc5 {[%clk 0:02:54]} 7. Nh3 {[%clk 0:02:46]}  Nc6 {[%clk 0:02:50]} 8. c3 {[%clk 0:02:45]}  Nf6 {[%clk 0:02:50]} 9. f3 {[%clk 0:02:37]}  O-O {[%clk 0:02:41]} 10. Kc2 {[%clk 0:02:37]}  e5 {[%clk 0:02:37]} 11. Nd2 {[%clk 0:02:35]}  Be6 {[%clk 0:02:37]} 12. Ng5 {[%clk 0:02:34]}  Bd7 {[%clk 0:02:37]} 13. Nb3 {[%clk 0:02:34]}  Bb6 {[%clk 0:02:36]} 14. Bh3 {[%clk 0:02:33]}  Rad8 {[%clk 0:02:28]} 15. Rd1 {[%clk 0:02:04]}  h6 {[%clk 0:02:14]} 16. Bxd7 {[%clk 0:02:02]}  Nxd7 {[%clk 0:02:13]} 17. Nh3 {[%clk 0:02:00]}  f5 {[%clk 0:02:10]} 18. exf5 {[%clk 0:01:57]}  Rxf5 {[%clk 0:02:10]} 19. f4 {[%clk 0:01:55]}  Rh5 {[%clk 0:02:09]} 20. Ng1 {[%clk 0:01:44]}  Rxh2+ {[%clk 0:02:08]} 21. Bd2 {[%clk 0:01:45]}  exf4 {[%clk 0:02:02]} 22. gxf4 {[%clk 0:01:42]}  Nf6 {[%clk 0:01:52]} 23. Nf3 {[%clk 0:01:42]}  Rf2 {[%clk 0:01:52]} 24. Ne5 {[%clk 0:01:41]}  Nxe5 {[%clk 0:01:44]} 25. fxe5 {[%clk 0:01:42]}  Ne4 {[%clk 0:01:45]} 26. e6 {[%clk 0:00:56]}  Nxd2 {[%clk 0:01:41]} 27. Rxd2 {[%clk 0:00:51]}  Rdxd2+ {[%clk 0:01:40]} 28. Nxd2 {[%clk 0:00:51]}  Be3 {[%clk 0:01:30]} 29. e7 {[%clk 0:00:29]}  Rxd2+ {[%clk 0:01:27]} 30. Kb3 {[%clk 0:00:27]}  Kf7 {[%clk 0:01:22]} 31. Re1 {[%clk 0:00:26]}  Kxe7 {[%clk 0:01:11]} 32. Rxe3+ {[%clk 0:00:26]}  Kf6 {[%clk 0:01:11]} 33. Re8 {[%clk 0:00:27]}  Rd7 {[%clk 0:01:10]} 34. Rf8+ {[%clk 0:00:24]}  Rf7 {[%clk 0:01:09]} 35. Rb8 {[%clk 0:00:24]}  c6 {[%clk 0:01:09]} 36. Ra8 {[%clk 0:00:25]}  g5 {[%clk 0:01:08]} 37. Kb4 {[%clk 0:00:24]}  g4 {[%clk 0:01:08]} 38. Kc5 {[%clk 0:00:24]}  g3 {[%clk 0:01:09]} 39. Rh8 {[%clk 0:00:23]}  Kg6 {[%clk 0:01:04]} 40. Rg8+ {[%clk 0:00:22]}  Rg7 {[%clk 0:01:04]} 41. Re8 {[%clk 0:00:21]}  g2 {[%clk 0:01:04]} 42. Re1 {[%clk 0:00:22]}  h5 {[%clk 0:01:01]} 0-1


[Site "https://www.chess.com"]

[Event "Titled Tuesday Blitz April 4 Early 2023"]
[White "Vlassov, Nikolai"]
[Black "Eynullayev, Atilla"]
[WhiteFideId "4103360"]
[BlackFideId "13413570"]
[WhiteElo "2324"]
[BlackElo "2181"]
[Result "0-1"]
[Round "06"]
[TimeControl "180+2"]
[Date "2023.04.04"]
[WhiteClock "0:00:02"]
[BlackClock "0:00:05"]

1. e4 {[%clk 0:02:38]}  c5 {[%clk 0:02:59]} 2. c3 {[%clk 0:02:37]}  Nf6 {[%clk 0:02:58]} 3. e5 {[%clk 0:02:37]}  Nd5 {[%clk 0:02:58]} 4. d4 {[%clk 0:02:36]}  cxd4 {[%clk 0:02:58]} 5. cxd4 {[%clk 0:02:37]}  d6 {[%clk 0:02:58]} 6. Bc4 {[%clk 0:02:36]}  dxe5 {[%clk 0:02:49]} 7. dxe5 {[%clk 0:02:36]}  Be6 {[%clk 0:02:49]} 8. Nf3 {[%clk 0:02:35]}  Nc6 {[%clk 0:02:49]} 9. O-O {[%clk 0:02:34]}  g6 {[%clk 0:02:43]} 10. Ng5 {[%clk 0:02:35]}  Bg7 {[%clk 0:02:43]} 11. Nxe6 {[%clk 0:02:34]}  fxe6 {[%clk 0:02:44]} 12. f4 {[%clk 0:02:33]}  Qb6+ {[%clk 0:02:41]} 13. Kh1 {[%clk 0:02:32]}  Rd8 {[%clk 0:02:31]} 14. Qg4 {[%clk 0:02:27]}  Nd4 {[%clk 0:02:22]} 15. Nc3 {[%clk 0:02:18]}  Nxc3 {[%clk 0:01:51]} 16. bxc3 {[%clk 0:02:18]}  Nc2 {[%clk 0:01:52]} 17. Qe2 {[%clk 0:01:34]}  Nxa1 {[%clk 0:01:48]} 18. Be3 {[%clk 0:01:34]}  Qc7 {[%clk 0:01:29]} 19. Bxe6 {[%clk 0:01:23]}  Qxc3 {[%clk 0:01:19]} 20. Bxa7 {[%clk 0:00:54]}  Nc2 {[%clk 0:00:37]} 21. Qb5+ {[%clk 0:00:34]}  Qc6 {[%clk 0:00:36]} 22. Qb3 {[%clk 0:00:24]}  Nd4 {[%clk 0:00:34]} 23. Bf7+ {[%clk 0:00:23]}  Kf8 {[%clk 0:00:34]} 24. Bxd4 {[%clk 0:00:22]}  Rxd4 {[%clk 0:00:34]} 25. Qb2 {[%clk 0:00:18]}  Qa6 {[%clk 0:00:13]} 26. Rc1 {[%clk 0:00:15]}  Rd8 {[%clk 0:00:13]} 27. Bc4 {[%clk 0:00:14]}  Qc6 {[%clk 0:00:12]} 28. Bb3 {[%clk 0:00:14]}  Qe4 {[%clk 0:00:12]} 29. Qc3 {[%clk 0:00:11]}  Bh6 {[%clk 0:00:08]} 30. Re1 {[%clk 0:00:10]}  Qf5 {[%clk 0:00:06]} 31. Qc4 {[%clk 0:00:08]}  Kg7 {[%clk 0:00:05]} 32. Rf1 {[%clk 0:00:06]}  Rhf8 {[%clk 0:00:05]} 33. h3 {[%clk 0:00:06]}  Qd3 {[%clk 0:00:05]} 34. Qc1 {[%clk 0:00:04]}  Rd4 {[%clk 0:00:04]} 35. Qc7 {[%clk 0:00:02]}  Qxf1+ {[%clk 0:00:04]} 36. Kh2 {[%clk 0:00:02]}  Bxf4+ {[%clk 0:00:04]} 37. g3 {[%clk 0:00:02]}  Rd2# {[%clk 0:00:05]} 0-1


[Site "https://www.chess.com"]

[Event "Titled Tuesday Blitz April 4 Early 2023"]
[White "Shuvalova, Polina"]
[Black "Mortazavi, Ali"]
[WhiteFideId "24171760"]
[BlackFideId "401323"]
[WhiteElo "2281"]
[BlackElo "2339"]
[Result "0-1"]
[Round "06"]
[TimeControl "180+2"]
[Date "2023.04.04"]
[WhiteClock "0:00:02"]
[BlackClock "0:00:03"]

1. e4 {[%clk 0:03:00]}  c6 {[%clk 0:02:54]} 2. d4 {[%clk 0:03:00]}  d5 {[%clk 0:02:55]} 3. exd5 {[%clk 0:02:59]}  cxd5 {[%clk 0:02:54]} 4. Bd3 {[%clk 0:03:00]}  Nc6 {[%clk 0:02:54]} 5. c3 {[%clk 0:03:00]}  Qc7 {[%clk 0:02:55]} 6. Ne2 {[%clk 0:02:58]}  Bg4 {[%clk 0:02:55]} 7. O-O {[%clk 0:02:58]}  e6 {[%clk 0:02:56]} 8. Qe1 {[%clk 0:02:58]}  Bd6 {[%clk 0:02:53]} 9. f3 {[%clk 0:02:58]}  Bf5 {[%clk 0:02:52]} 10. Bxf5 {[%clk 0:02:57]}  exf5 {[%clk 0:02:53]} 11. Bf4 {[%clk 0:02:48]}  O-O-O {[%clk 0:02:24]} 12. Qg3 {[%clk 0:02:41]}  g6 {[%clk 0:02:22]} 13. Nd2 {[%clk 0:02:38]}  Nf6 {[%clk 0:02:22]} 14. Bxd6 {[%clk 0:02:33]}  Rxd6 {[%clk 0:02:21]} 15. Rfe1 {[%clk 0:02:29]}  Nh5 {[%clk 0:02:20]} 16. Qf2 {[%clk 0:02:21]}  Re6 {[%clk 0:02:07]} 17. Nb3 {[%clk 0:01:50]}  Rhe8 {[%clk 0:01:56]} 18. Nc5 {[%clk 0:01:49]}  R6e7 {[%clk 0:01:52]} 19. Ng3 {[%clk 0:01:47]}  Nf4 {[%clk 0:01:52]} 20. Qd2 {[%clk 0:01:30]}  Na5 {[%clk 0:01:21]} 21. Rxe7 {[%clk 0:01:28]}  Rxe7 {[%clk 0:01:21]} 22. Re1 {[%clk 0:01:10]}  Nc4 {[%clk 0:01:08]} 23. Rxe7 {[%clk 0:01:09]}  Nxd2 {[%clk 0:00:51]} 24. Re8+ {[%clk 0:01:08]}  Qd8 {[%clk 0:00:51]} 25. Rxd8+ {[%clk 0:01:09]}  Kxd8 {[%clk 0:00:52]} 26. Nxb7+ {[%clk 0:01:08]}  Kc7 {[%clk 0:00:53]} 27. Nc5 {[%clk 0:01:07]}  Nc4 {[%clk 0:00:40]} 28. b3 {[%clk 0:01:07]}  Ne3 {[%clk 0:00:41]} 29. Nf1 {[%clk 0:00:58]}  Nd1 {[%clk 0:00:32]} 30. g3 {[%clk 0:00:44]}  Ne2+ {[%clk 0:00:31]} 31. Kg2 {[%clk 0:00:44]}  Ndxc3 {[%clk 0:00:29]} 32. Ne3 {[%clk 0:00:39]}  Nxd4 {[%clk 0:00:28]} 33. a4 {[%clk 0:00:38]}  Ne6 {[%clk 0:00:22]} 34. Nd3 {[%clk 0:00:37]}  a5 {[%clk 0:00:15]} 35. f4 {[%clk 0:00:37]}  Kd6 {[%clk 0:00:12]} 36. Ne5 {[%clk 0:00:37]}  f6 {[%clk 0:00:12]} 37. Nd3 {[%clk 0:00:36]}  Nc5 {[%clk 0:00:12]} 38. Nc1 {[%clk 0:00:34]}  N3e4 {[%clk 0:00:10]} 39. Nc2 {[%clk 0:00:28]}  Ne6 {[%clk 0:00:08]} 40. Kf3 {[%clk 0:00:27]}  Kc5 {[%clk 0:00:07]} 41. Nd3+ {[%clk 0:00:26]}  Kb6 {[%clk 0:00:06]} 42. b4 {[%clk 0:00:25]}  Nd2+ {[%clk 0:00:05]} 43. Ke2 {[%clk 0:00:24]}  Ne4 {[%clk 0:00:04]} 44. bxa5+ {[%clk 0:00:22]}  Kxa5 {[%clk 0:00:04]} 45. Ndb4 {[%clk 0:00:22]}  Nc7 {[%clk 0:00:02]} 46. Kd3 {[%clk 0:00:17]}  Kxa4 {[%clk 0:00:03]} 47. Kd4 {[%clk 0:00:17]}  Kb3 {[%clk 0:00:03]} 48. Kd3 {[%clk 0:00:13]}  Nf2+ {[%clk 0:00:03]} 49. Kd2 {[%clk 0:00:13]}  Ng4 {[%clk 0:00:02]} 50. h3 {[%clk 0:00:11]}  Nf2 {[%clk 0:00:03]} 51. Nc6 {[%clk 0:00:09]}  Nxh3 {[%clk 0:00:03]} 52. N2d4+ {[%clk 0:00:09]}  Kc4 {[%clk 0:00:02]} 53. Ne7 {[%clk 0:00:10]}  Nf2 {[%clk 0:00:02]} 54. Ndc6 {[%clk 0:00:07]}  Ne4+ {[%clk 0:00:03]} 55. Ke3 {[%clk 0:00:08]}  Nxg3 {[%clk 0:00:04]} 56. Nc8 {[%clk 0:00:07]}  Ne4 {[%clk 0:00:02]} 57. Na5+ {[%clk 0:00:05]}  Kb5 {[%clk 0:00:02]} 58. Nb3 {[%clk 0:00:05]}  Ne6 {[%clk 0:00:02]} 59. Ne7 {[%clk 0:00:05]}  Kc4 {[%clk 0:00:03]} 60. Na5+ {[%clk 0:00:04]}  Kc3 {[%clk 0:00:03]} 61. Nxd5+ {[%clk 0:00:04]}  Kc2 {[%clk 0:00:02]} 62. Nc6 {[%clk 0:00:05]}  h5 {[%clk 0:00:02]} 63. Nce7 {[%clk 0:00:03]}  h4 {[%clk 0:00:03]} 64. Nxg6 {[%clk 0:00:04]}  h3 {[%clk 0:00:03]} 65. Kf3 {[%clk 0:00:04]}  Kd3 {[%clk 0:00:02]} 66. Nh4 {[%clk 0:00:02]}  Nd4# {[%clk 0:00:03]} 0-1


[Site "https://www.chess.com"]

[Event "Titled Tuesday Blitz April 4 Early 2023"]
[White "Darini, Pouria"]
[Black "Bayo Milagro, Alvaro"]
[WhiteFideId "12502200"]
[BlackFideId "22275240"]
[WhiteElo "2482"]
[BlackElo "2270"]
[Result "1-0"]
[Round "06"]
[TimeControl "180+2"]
[Date "2023.04.04"]
[WhiteClock "0:00:11"]
[BlackClock "0:00:19"]

1. b3 {[%clk 0:03:00]}  Nf6 {[%clk 0:02:58]} 2. Bb2 {[%clk 0:03:01]}  g6 {[%clk 0:02:59]} 3. Nf3 {[%clk 0:03:02]}  Bg7 {[%clk 0:02:59]} 4. g3 {[%clk 0:03:02]}  O-O {[%clk 0:02:59]} 5. Bg2 {[%clk 0:03:03]}  b6 {[%clk 0:02:58]} 6. O-O {[%clk 0:03:03]}  Bb7 {[%clk 0:02:58]} 7. c4 {[%clk 0:03:04]}  c5 {[%clk 0:02:57]} 8. d4 {[%clk 0:03:04]}  cxd4 {[%clk 0:02:57]} 9. Nxd4 {[%clk 0:03:04]}  Bxg2 {[%clk 0:02:57]} 10. Kxg2 {[%clk 0:03:05]}  Nc6 {[%clk 0:02:57]} 11. Nxc6 {[%clk 0:03:04]}  dxc6 {[%clk 0:02:57]} 12. Na3 {[%clk 0:03:05]}  Qxd1 {[%clk 0:02:52]} 13. Raxd1 {[%clk 0:03:05]}  Rfd8 {[%clk 0:02:53]} 14. Nc2 {[%clk 0:02:55]}  Ne4 {[%clk 0:02:36]} 15. Bxg7 {[%clk 0:02:51]}  Kxg7 {[%clk 0:02:36]} 16. Nb4 {[%clk 0:02:49]}  Rac8 {[%clk 0:02:04]} 17. Rxd8 {[%clk 0:02:46]}  Rxd8 {[%clk 0:02:05]} 18. Nxc6 {[%clk 0:02:47]}  Rd2 {[%clk 0:02:05]} 19. Nxa7 {[%clk 0:02:06]}  Rxa2 {[%clk 0:01:54]} 20. Nc8 {[%clk 0:02:07]}  f5 {[%clk 0:01:45]} 21. Re1 {[%clk 0:01:35]}  Rb2 {[%clk 0:01:36]} 22. Nxb6 {[%clk 0:01:34]}  Rxb3 {[%clk 0:01:35]} 23. Nd5 {[%clk 0:01:33]}  Rb2 {[%clk 0:01:31]} 24. Nxe7 {[%clk 0:01:15]}  Rc2 {[%clk 0:01:28]} 25. Nd5 {[%clk 0:01:13]}  Rxc4 {[%clk 0:01:24]} 26. h4 {[%clk 0:01:03]}  Rc2 {[%clk 0:01:21]} 27. Nf4 {[%clk 0:00:54]}  h6 {[%clk 0:01:14]} 28. f3 {[%clk 0:00:37]}  Nc5 {[%clk 0:01:02]} 29. Kf1 {[%clk 0:00:30]}  g5 {[%clk 0:01:02]} 30. hxg5 {[%clk 0:00:30]}  hxg5 {[%clk 0:01:03]} 31. Nd5 {[%clk 0:00:30]}  g4 {[%clk 0:00:58]} 32. Ne3 {[%clk 0:00:28]}  Rc3 {[%clk 0:00:57]} 33. Nxf5+ {[%clk 0:00:28]}  Kf6 {[%clk 0:00:57]} 34. Nh4 {[%clk 0:00:27]}  Ne6 {[%clk 0:00:49]} 35. Rd1 {[%clk 0:00:23]}  Ng5 {[%clk 0:00:44]} 36. Kf2 {[%clk 0:00:16]}  Nh3+ {[%clk 0:00:30]} 37. Kf1 {[%clk 0:00:11]}  Ng5 {[%clk 0:00:29]} 38. Kf2 {[%clk 0:00:11]}  Nh3+ {[%clk 0:00:29]} 39. Kg2 {[%clk 0:00:11]}  Ng5 {[%clk 0:00:22]} 40. Rd6+ {[%clk 0:00:11]}  Ke5 {[%clk 0:00:19]} 41. Rg6 {[%clk 0:00:11]}  gxf3+ {[%clk 0:00:19]} 42. Nxf3+ {[%clk 0:00:11]} 1-0


[Site "https://www.chess.com"]